bitfinex/quotes_BTCUSD_20250916
["timestamp","ask_amount","ask_price","bid_price","bid_amount"]
[1758048064524,0.60736637,116460.0,116450.0,1.84266753]
[1758048064772,0.6878649,116460.0,116450.0,1.84266753]
[1758048065014,0.6878649,116460.0,116450.0,1.4]
[1758048065199,0.6878649,116460.0,116450.0,1.67092]
[1758048065661,0.6878649,116460.0,116450.0,1.34266753]
[1758048065872,0.64280199,116460.0,116450.0,1.34266753]
[1758048069508,0.28209131,116460.0,116450.0,1.34266753]
[1758048069733,0.20159278,116460.0,116450.0,1.34266753]
[1758048069947,0.56230346,116460.0,116450.0,1.34266753]
[1758048070366,0.17383278,116460.0,116450.0,1.34266753]
[1758048070514,0.20159278,116460.0,116450.0,1.07174753]
[1758048070749,0.20159278,116460.0,116450.0,1.34266753]
[1758048071113,0.27758502,116460.0,116450.0,1.34266753]
[1758048071338,0.27758502,116460.0,116450.0,1.07174753]
[1758048071548,0.27758502,116460.0,116450.0,1.34266753]
[1758048072905,0.27758502,116460.0,116450.0,1.07174753]
[1758048073153,0.27758502,116460.0,116450.0,1.34262753]
[1758048073359,0.6382957,116460.0,116450.0,1.34262753]
[1758048073658,0.27758502,116460.0,116450.0,1.34262753]
[1758048073848,0.6382957,116460.0,116450.0,1.34262753]
[1758048074285,0.27758502,116460.0,116450.0,1.34262753]
[1758048074509,0.27758502,116460.0,116450.0,1.07174753]
[1758048074710,0.27758502,116460.0,116450.0,1.34262753]
[1758048075626,0.6382957,116460.0,116450.0,1.34262753]
[1758048077010,0.10585224,116460.0,116450.0,1.34262753]
[1758048077219,0.07809224,116460.0,116450.0,1.34262753]
[1758048077839,0.24982502,116460.0,116450.0,1.34262753]
[1758048078269,0.27758502,116460.0,116450.0,1.34262753]
[1758048080247,0.27758502,116460.0,116450.0,1.07174753]
[1758048080461,0.27758502,116460.0,116450.0,1.34262753]
[1758048082395,0.27452502,116460.0,116450.0,1.34262753]
[1758048082607,0.27452502,116460.0,116450.0,1.07174753]
[1758048082816,0.27452502,116460.0,116450.0,1.34262753]
[1758048083007,0.27758502,116460.0,116450.0,1.34262753]
[1758048083441,0.0021,116460.0,116450.0,1.34262753]
[1758048083656,0.0021,116460.0,116450.0,1.07174753]
[1758048083657,0.17383278,116460.0,116450.0,1.07174753]
[1758048083771,0.17598278,116460.0,116450.0,1.34262753]
[1758048083996,0.17904278,116460.0,116450.0,1.34262753]
[1758048084234,0.20159278,116460.0,116450.0,0.77084]
[1758048084460,0.6382957,116460.0,116450.0,0.77084]
[1758048086324,0.27758502,116460.0,116450.0,0.77084]
[1758048088507,0.27758502,116460.0,116450.0,1.17084]
[1758048088720,0.27758502,116460.0,116450.0,1.34258753]
[1758048088900,0.27758502,116460.0,116450.0,1.17084]
[1758048090266,0.27758502,116460.0,116450.0,1.34258753]
[1758048090612,0.27758502,116460.0,116450.0,1.17084]
[1758048091733,0.27758502,116460.0,116450.0,1.34258753]
[1758048092735,0.25197502,116460.0,116450.0,1.34258753]
[1758048093407,0.25503502,116460.0,116450.0,1.34258753]
[1758048093617,0.27821502,116460.0,116450.0,1.34258753]
[1758048094902,0.27821502,116460.0,116450.0,1.17084]
[1758048095125,0.27821502,116460.0,116450.0,1.1708]
[1758048095575,0.27821502,116460.0,116450.0,1.34254753]
[1758048097486,0.27821502,116460.0,116450.0,1.1708]
[1758048097803,0.27821502,116460.0,116450.0,1.34254753]
[1758048098025,0.27821502,116460.0,116450.0,1.1708]
[1758048099247,0.27821502,116460.0,116450.0,1.34254753]
[1758048106346,0.27821502,116460.0,116450.0,1.07174753]
[1758048106529,0.27821502,116460.0,116450.0,1.34250753]
[1758048118058,0.6390857,116460.0,116450.0,0.5]
[1758048118290,1.2497657,116460.0,116450.0,0.77068]
[1758048118522,1.12154352,116460.0,116450.0,0.77068]
[1758048118759,1.12154352,116460.0,116450.0,0.5]
[1758048118986,1.13660245,116460.0,116450.0,0.49675]
[1758048119199,1.15813275,116460.0,116450.0,0.49675]
[1758048119420,1.13859192,116460.0,116450.0,0.10128409]
[1758048119606,0.17174753,116450.0,116440.0,5e-05]
[1758048119852,0.99218951,116450.0,116440.0,5e-05]
[1758048120071,1.02055951,116450.0,116440.0,5e-05]
[1758048120259,1.39415289,116450.0,116440.0,5e-05]
[1758048120507,1.75496357,116450.0,116440.0,5e-05]
[1758048121225,1.89524357,116450.0,116440.0,5e-05]
[1758048121464,1.53728357,116450.0,116440.0,5e-05]
[1758048121667,1.80496357,116450.0,116440.0,5e-05]
[1758048122751,1.80492582,116450.0,116440.0,5e-05]
[1758048122961,1.80992582,116450.0,116440.0,5e-05]
[1758048123351,1.53924582,116450.0,116440.0,5e-05]
[1758048123595,1.80792582,116450.0,116440.0,5e-05]
[1758048123801,1.81092582,116450.0,116440.0,5e-05]
[1758048124061,1.88245612,116450.0,116440.0,5e-05]
[1758048124269,1.61177612,116450.0,116440.0,5e-05]
[1758048124488,1.86092582,116450.0,116440.0,5e-05]
[1758048125986,1.85792582,116450.0,116440.0,5e-05]
[1758048126440,1.86292582,116450.0,116440.0,5e-05]
[1758048126858,1.86004582,116450.0,116440.0,5e-05]
[1758048127096,1.86404582,116450.0,116440.0,5e-05]
[1758048127750,1.86004582,116450.0,116440.0,5e-05]
[1758048127968,1.95506928,116450.0,116440.0,5e-05]
[1758048128813,1.95518928,116450.0,116440.0,5e-05]
[1758048128948,1.68426928,116450.0,116440.0,5e-05]
[1758048129167,1.95518928,116450.0,116440.0,5e-05]
[1758048130430,1.68426928,116450.0,116440.0,5e-05]
[1758048130837,1.90510928,116450.0,116440.0,5e-05]
[1758048131044,1.95510928,116450.0,116440.0,5e-05]
[1758048131244,1.68426928,116450.0,116440.0,5e-05]
[1758048131632,1.95506928,116450.0,116440.0,5e-05]
[1758048132175,1.95510928,116450.0,116440.0,5e-05]
[1758048133486,1.95502928,116450.0,116440.0,5e-05]
[1758048133924,1.95495048,116450.0,116440.0,5e-05]
[1758048134137,0.94818085,116410.0,116400.0,0.00309749]
[1758048134342,1.4079156,116410.0,116400.0,0.00309749]
[1758048134490,1.1657056,116410.0,116400.0,0.00309749]
[1758048134745,1.4364656,116410.0,116400.0,0.00309749]
[1758048135148,1.4365656,116410.0,116400.0,0.00309749]
[1758048135421,1.46250364,116410.0,116400.0,0.00309749]
[1758048135830,1.46350364,116410.0,116400.0,0.00309749]
[1758048136918,1.43989364,116410.0,116400.0,0.00309749]
[1758048137128,1.43989364,116410.0,116400.0,0.00508749]
[1758048137129,1.18369655,116410.0,116400.0,0.00508749]
[1758048137334,1.20734655,116410.0,116400.0,0.00508749]
[1758048137562,1.20834655,116410.0,116400.0,0.00508749]
[1758048137999,1.47914655,116410.0,116400.0,0.00309749]
[1758048138423,1.07292414,116410.0,116400.0,0.00309749]
[1758048138631,1.47914655,116410.0,116400.0,0.00309749]
[1758048140207,1.20834655,116410.0,116400.0,0.00309749]
[1758048140540,1.47914655,116410.0,116400.0,0.00309749]
[1758048142019,1.88536896,116410.0,116400.0,0.00309749]
[1758048142706,1.88436896,116410.0,116400.0,0.00309749]
[1758048143127,1.88636896,116410.0,116400.0,0.00309749]
[1758048143366,1.88436896,116410.0,116400.0,0.00309749]
[1758048143587,1.88536896,116410.0,116400.0,0.00309749]
[1758048144036,1.88736896,116410.0,116400.0,0.00309749]
[1758048144401,1.88536896,116410.0,116400.0,0.00309749]
[1758048144628,0.5118213,116400.0,116390.0,0.0002]
[1758048144869,1.71401832,116400.0,116390.0,0.0002]
[1758048145021,1.74260832,116400.0,116390.0,0.0002]
[1758048145218,1.82276022,116400.0,116390.0,0.0002]
[1758048145814,1.48947149,116400.0,116390.0,0.0002]
[1758048146018,1.77621934,116400.0,116390.0,0.0002]
[1758048146374,1.77921934,116400.0,116390.0,0.0002]
[1758048146632,1.77621934,116400.0,116390.0,0.0002]
[1758048147078,1.78121934,116400.0,116390.0,0.0002]
[1758048147535,1.77921934,116400.0,116390.0,0.0002]
[1758048147745,1.78221934,116400.0,116390.0,0.0002]
[1758048148846,1.84620739,116400.0,116390.0,0.0002]
[1758048150230,0.76296257,116400.0,116390.0,0.0002]
[1758048150471,1.84624739,116400.0,116390.0,0.0002]
[1758048151369,1.84624739,116400.0,116390.0,0.00219]
[1758048151370,0.73437257,116400.0,116390.0,0.00219]
[1758048151584,1.00722257,116400.0,116390.0,0.00219]
[1758048151801,1.54882739,116400.0,116390.0,0.00219]
[1758048152012,1.34752693,116400.0,116390.0,0.00219]
[1758048152223,1.35246693,116400.0,116390.0,0.0002]
[1758048152466,1.37611693,116400.0,116390.0,0.0002]
[1758048152929,1.78233934,116400.0,116390.0,0.0002]
[1758048153589,1.48282934,116400.0,116390.0,0.0023]
[1758048153812,0.94130452,116400.0,116390.0,0.0023]
[1758048153947,1.48282934,116400.0,116390.0,0.0023]
[1758048154172,0.82457117,116400.0,116390.0,0.00442]
[1758048154407,1.23079358,116400.0,116390.0,0.00442]
[1758048155466,0.95995358,116400.0,116390.0,0.00442]
[1758048155699,0.82457117,116400.0,116390.0,0.00442]
[1758048155911,1.23079358,116400.0,116390.0,0.00442]
[1758048158364,0.82457117,116400.0,116390.0,0.00442]
[1758048158561,1.23079358,116400.0,116390.0,0.00442]
[1758048159462,0.82457117,116400.0,116390.0,0.0023]
[1758048159666,1.23079358,116400.0,116390.0,0.0023]
[1758048161311,1.37763693,116400.0,116390.0,0.0002]
[1758048161677,1.78385934,116400.0,116390.0,0.0002]
[1758048162123,1.37763693,116400.0,116390.0,0.0002]
[1758048162522,1.78385934,116400.0,116390.0,0.0002]
[1758048163125,1.37763693,116400.0,116390.0,0.0002]
[1758048163596,1.37763693,116400.0,116390.0,0.0023]
[1758048163777,1.37448693,116400.0,116390.0,0.0023]
[1758048164827,0.67038452,116400.0,116390.0,0.0023]
[1758048165051,1.34744693,116400.0,116390.0,0.00442]
[1758048166762,0.94122452,116400.0,116390.0,0.00442]
[1758048166994,1.34744693,116400.0,116390.0,0.00442]
[1758048169043,1.34744693,116400.0,116390.0,0.0023]
[1758048169662,0.67038452,116400.0,116390.0,0.00442]
[1758048169866,1.07660693,116400.0,116390.0,0.00442]
[1758048170173,0.94131374,116400.0,116390.0,0.00442]
[1758048171956,1.34753615,116400.0,116390.0,0.00442]
[1758048173479,0.58397229,116400.0,116390.0,0.00442]
[1758048174067,0.85481229,116400.0,116390.0,0.00442]
[1758048174481,0.82466039,116400.0,116390.0,0.00442]
[1758048175449,0.55382039,116400.0,116390.0,0.00442]
[1758048175633,0.82466039,116400.0,116390.0,0.00442]
[1758048176076,0.55382039,116400.0,116390.0,0.41064241]
[1758048176292,0.82466039,116400.0,116390.0,0.41064241]
[1758048176488,0.82466039,116400.0,116390.0,0.00442]
[1758048176702,0.82466039,116400.0,116390.0,0.41064241]
[1758048177161,0.82466039,116400.0,116390.0,0.00442]
[1758048178404,0.80862332,116400.0,116390.0,0.00442]
[1758048179036,0.19778332,116400.0,116390.0,0.58247847]
[1758048179647,0.02596202,116400.0,116390.0,0.58247847]
[1758048180400,0.00954312,116400.0,116390.0,0.58247847]
[1758048180613,0.00954312,116400.0,116390.0,0.98247847]
[1758048181185,0.0061,116400.0,116390.0,0.98247847]
[1758048182452,0.0031,116400.0,116390.0,0.98247847]
[1758048182671,0.0041,116400.0,116390.0,0.98247847]
[1758048182883,0.0041,116400.0,116390.0,1.33977992]
[1758048183098,0.0011,116400.0,116390.0,1.33977992]
[1758048183754,0.0021,116400.0,116390.0,1.33977992]
[1758048184377,0.0021,116400.0,116390.0,1.42243992]
[1758048186772,0.0021,116400.0,116390.0,1.82866233]
[1758048187181,0.0021,116400.0,116390.0,1.85447015]
[1758048189018,0.0011,116400.0,116390.0,1.85447015]
[1758048189234,0.003,116400.0,116390.0,1.85647015]
[1758048189667,0.003,116400.0,116390.0,2.19647015]
[1758048189877,0.002,116400.0,116390.0,2.10548685]
[1758048190290,0.003,116400.0,116390.0,2.10648685]
[1758048191908,0.003,116400.0,116390.0,2.10644685]
[1758048192081,0.003,116400.0,116390.0,1.83568685]
[1758048192310,0.003,116400.0,116390.0,2.10644685]
[1758048192787,0.003,116400.0,116390.0,2.60644685]
[1758048193922,0.00012076,116410.0,116400.0,0.5118213]
[1758048194141,0.00012076,116410.0,116400.0,1.32190427]
[1758048194349,0.00012076,116410.0,116400.0,1.32395427]
[1758048194770,0.00012076,116410.0,116400.0,2.02051711]
[1758048195447,0.00112076,116410.0,116400.0,2.02251711]
[1758048195672,0.00112076,116410.0,116400.0,2.08730469]
[1758048195878,0.00112076,116410.0,116400.0,2.11745659]
[1758048196337,0.00112076,116410.0,116400.0,1.84679659]
[1758048196554,0.00212076,116410.0,116400.0,2.11851659]
[1758048198041,0.00212076,116410.0,116400.0,2.16851659]
[1758048198270,0.06930116,116430.0,116420.0,0.53252254]
[1758048198444,0.06930116,116430.0,116420.0,0.97277411]
[1758048198651,0.06930116,116430.0,116420.0,0.97694411]
[1758048198896,0.0001,116430.0,116420.0,1.37704411]
[1758048199515,0.0001,116430.0,116420.0,1.37804411]
[1758048199516,0.0011,116430.0,116420.0,1.37804411]
[1758048200180,0.0021,116430.0,116420.0,1.37904411]
[1758048201425,0.0021,116430.0,116420.0,1.37900411]
[1758048205986,0.0021,116430.0,116420.0,1.10828411]
[1758048206169,0.0021,116430.0,116420.0,1.37896411]
[1758048212185,0.0021,116430.0,116420.0,1.87896411]
[1758048215214,0.01812173,116430.0,116420.0,1.87896411]
[1758048215674,0.01802173,116430.0,116420.0,2.21896411]
[1758048215895,0.002,116430.0,116420.0,2.23708584]
[1758048216323,0.01803407,116430.0,116420.0,2.23708584]
[1758048217698,0.01703407,116430.0,116420.0,1.96540584]
[1758048217956,0.01703407,116430.0,116420.0,1.96640584]
[1758048218152,0.01803407,116430.0,116420.0,2.23704584]
[1758048218401,0.01703407,116430.0,116420.0,2.23604584]
[1758048218631,0.01803407,116430.0,116420.0,2.24104584]
[1758048218851,0.01703407,116430.0,116420.0,2.24004584]
[1758048219305,0.01803407,116430.0,116420.0,2.24104584]
[1758048219832,0.01703407,116430.0,116420.0,2.24004584]
[1758048220050,0.01803407,116430.0,116420.0,1.97140584]
[1758048220263,0.01803407,116430.0,116420.0,2.24204584]
[1758048221741,0.01803407,116430.0,116420.0,1.97140584]
[1758048222184,0.01803407,116430.0,116420.0,2.24204584]
[1758048222419,0.01803407,116430.0,116420.0,1.45328411]
[1758048222653,0.01803407,116430.0,116420.0,0.75255335]
[1758048223161,0.05369141,116430.0,116420.0,1.02319335]
[1758048223386,0.05369141,116430.0,116420.0,1.38392411]
[1758048224048,0.05369141,116430.0,116420.0,0.67003335]
[1758048224291,0.05369141,116430.0,116420.0,0.94067335]
[1758048224507,0.05379141,116430.0,116420.0,0.94067335]
[1758048225169,0.01813407,116430.0,116420.0,0.94067335]
[1758048225825,0.01813407,116430.0,116420.0,1.30140411]
[1758048226763,0.01813407,116430.0,116420.0,1.80140411]
[1758048231551,0.01813407,116430.0,116420.0,1.30140411]
[1758048232387,0.01813407,116430.0,116420.0,1.03076411]
[1758048232607,0.01813407,116430.0,116420.0,1.30140411]
[1758048233342,0.0021,116430.0,116420.0,1.30140411]
[1758048233544,0.02109996,116430.0,116420.0,1.30140411]
[1758048235032,0.02109996,116430.0,116420.0,0.93855335]
[1758048235229,0.17387703,116430.0,116420.0,0.93855335]
[1758048235786,0.53460779,116430.0,116420.0,0.93855335]
[1758048236330,0.36283076,116430.0,116420.0,0.93855335]
[1758048236939,0.36283076,116430.0,116420.0,1.44067335]
[1758048237164,0.0021,116430.0,116420.0,1.44067335]
[1758048243238,0.0021,116430.0,116420.0,3.44067335]
[1758048245048,0.0021,116430.0,116420.0,3.44017335]
[1758048247344,0.0021,116430.0,116420.0,3.44013335]
[1758048248688,0.0021,116430.0,116420.0,3.43801335]
[1758048249096,0.0021,116430.0,116420.0,3.44013335]
[1758048249316,0.0021,116430.0,116420.0,3.16741335]
[1758048249697,0.0021,116430.0,116420.0,3.43801335]
[1758048249929,0.40805285,116430.0,116420.0,3.43801335]
[1758048250332,0.06266361,116430.0,116420.0,3.44013335]
[1758048250537,0.40805285,116430.0,116420.0,3.44013335]
[1758048251084,0.57982988,116430.0,116420.0,3.16741335]
[1758048251286,0.58180988,116430.0,116420.0,3.43761335]
[1758048251508,0.60450988,116430.0,116420.0,3.43761335]
[1758048251720,0.58180988,116430.0,116420.0,3.43761335]
[1758048251933,0.65974919,116430.0,116420.0,3.0805119]
[1758048252154,0.65974919,116430.0,116420.0,3.3511119]
[1758048252371,0.65874919,116430.0,116420.0,3.3491119]
[1758048252588,0.68144919,116430.0,116420.0,3.3491119]
[1758048252994,0.68044919,116430.0,116420.0,3.3441119]
[1758048253202,0.68144919,116430.0,116420.0,3.3461119]
[1758048253634,0.68044919,116430.0,116420.0,3.3441119]
[1758048253812,0.68144919,116430.0,116420.0,3.3461119]
[1758048254024,0.27549634,116430.0,116420.0,3.3461119]
[1758048254244,0.40705285,116430.0,116420.0,3.3461119]
[1758048254610,0.40805285,116430.0,116420.0,3.3471119]
[1758048254821,0.40805285,116430.0,116420.0,3.3492319]
[1758048255192,0.40805285,116430.0,116420.0,3.3471119]
[1758048259802,0.41003285,116430.0,116420.0,3.3471119]
[1758048260003,0.43273285,116430.0,116420.0,3.3471119]
[1758048260298,0.51828446,116430.0,116420.0,3.3471119]
[1758048260518,0.49558446,116430.0,116420.0,3.3471119]
[1758048260683,0.08765161,116430.0,116420.0,3.3471119]
[1758048260944,0.40805285,116430.0,116420.0,3.3471119]
[1758048264255,0.57982988,116430.0,116420.0,3.3471119]
[1758048264681,0.58180988,116430.0,116420.0,3.3471119]
[1758048264878,0.60752988,116430.0,116420.0,3.3471119]
[1758048266509,0.60450988,116430.0,116420.0,3.3471119]
[1758048266853,0.69101133,116430.0,116420.0,3.3471119]
[1758048267271,0.69403133,116430.0,116420.0,3.3471119]
[1758048268400,0.69101133,116430.0,116420.0,3.3471119]
[1758048268935,0.5172543,116430.0,116420.0,3.3471119]
[1758048269169,0.4945543,116430.0,116420.0,3.3471119]
[1758048269524,0.66633133,116430.0,116420.0,3.3471119]
[1758048270041,0.68903133,116430.0,116420.0,3.3471119]
[1758048270272,0.66633133,116430.0,116420.0,3.3471119]
[1758048271431,0.4945543,116430.0,116420.0,3.3471119]
[1758048271631,0.4945543,116430.0,116420.0,3.3492319]
[1758048272755,0.4945543,116430.0,116420.0,3.3471119]
[1758048273880,0.66633133,116430.0,116420.0,3.3471119]
[1758048275063,0.67142133,116430.0,116420.0,2.90562012]
[1758048275285,0.69197133,116430.0,116420.0,3.3479319]
[1758048280165,0.69197133,116430.0,116420.0,3.0774119]
[1758048280326,0.69197133,116430.0,116420.0,3.3479319]
[1758048280522,0.68999133,116430.0,116420.0,3.3479319]
[1758048281740,0.69197133,116430.0,116420.0,3.3479319]
[1758048282560,0.66633133,116430.0,116420.0,3.3479319]
[1758048283169,0.26037848,116430.0,116420.0,3.3479319]
[1758048283386,0.0021,116430.0,116420.0,3.3500519]
[1758048283605,0.57982988,116430.0,116420.0,3.3479319]
[1758048286648,0.57982988,116430.0,116420.0,3.0774119]
[1758048286852,0.57982988,116430.0,116420.0,3.3479319]
[1758048287472,0.58180988,116430.0,116420.0,3.3479319]
[1758048287682,0.60546988,116430.0,116420.0,3.3479319]
[1758048287890,0.69197133,116430.0,116420.0,3.0774119]
[1758048288032,0.69508133,116430.0,116420.0,3.3479319]
[1758048289186,0.69197133,116430.0,116420.0,3.3479319]
[1758048289367,0.69508133,116430.0,116420.0,3.3458819]
[1758048290327,0.69508133,116430.0,116420.0,3.3478619]
[1758048293073,0.69508133,116430.0,116420.0,3.3458819]
[1758048293290,0.66633133,116430.0,116420.0,3.3479419]
[1758048294046,0.68912133,116430.0,116420.0,3.3479419]
[1758048294236,0.69116133,116430.0,116420.0,3.3479419]
[1758048294677,1.07746418,116430.0,116420.0,2.90357012]
[1758048294887,1.10025418,116430.0,116420.0,2.50357012]
[1758048295099,1.12606309,116430.0,116420.0,2.50357012]
[1758048295541,1.12606309,116430.0,116420.0,2.50347012]
[1758048295761,1.41259844,116430.0,116420.0,2.50347012]
[1758048296610,1.41059844,116430.0,116420.0,2.50047012]
[1758048297033,1.41459844,116430.0,116420.0,2.50247012]
[1758048297249,1.75459844,116430.0,116420.0,2.50247012]
[1758048298123,1.75458047,116430.0,116420.0,2.50247012]
[1758048300376,1.83710047,116430.0,116420.0,2.00247012]
[1758048300595,1.86725237,116430.0,116420.0,2.00247012]
[1758048300807,1.95375382,116430.0,116420.0,2.00247012]
[1758048301428,1.14184812,116430.0,116420.0,2.00247012]
[1758048301644,1.95375382,116430.0,116420.0,2.00247012]
[1758048302226,1.68327382,116430.0,116420.0,2.00247012]
[1758048302431,1.95375382,116430.0,116420.0,2.00247012]
[1758048303042,1.68327382,116430.0,116420.0,2.00247012]
[1758048303244,1.95375382,116430.0,116420.0,2.00247012]
[1758048307266,1.93771644,116430.0,116420.0,2.00247012]
[1758048309333,1.95369271,116430.0,116420.0,2.00247012]
[1758048309828,1.14178701,116430.0,116420.0,2.00247012]
[1758048310024,1.50285653,116430.0,116420.0,2.00247012]
[1758048315474,1.23237653,116430.0,116420.0,2.00247012]
[1758048315678,1.50420653,116430.0,116420.0,2.00247012]
[1758048318688,1.23368653,116430.0,116420.0,2.00247012]
[1758048318881,1.50420653,116430.0,116420.0,2.00247012]
[1758048319204,1.23368653,116430.0,116420.0,2.00247012]
[1758048319394,1.50420653,116430.0,116420.0,2.00247012]
[1758048322175,1.47405463,116430.0,116420.0,2.00247012]
[1758048331990,1.20353463,116430.0,116420.0,2.00247012]
[1758048332282,1.47405463,116430.0,116420.0,2.00247012]
[1758048334069,1.50420653,116430.0,116420.0,2.00247012]
[1758048337579,1.23368653,116430.0,116420.0,2.00247012]
[1758048337765,1.50420653,116430.0,116420.0,2.00247012]
[1758048339054,1.23368653,116430.0,116420.0,2.00247012]
[1758048339261,1.50420653,116430.0,116420.0,2.00247012]
[1758048341278,1.23368653,116430.0,116420.0,2.00247012]
[1758048341494,1.50420653,116430.0,116420.0,2.00247012]
[1758048344718,1.23368653,116430.0,116420.0,2.00247012]
[1758048345260,1.23373372,116430.0,116420.0,2.00247012]
[1758048345506,1.50225372,116430.0,116420.0,2.00147012]
[1758048346060,1.50225372,116430.0,116420.0,2.00047012]
[1758048346300,0.2177094,116430.0,116420.0,2.00566012]
[1758048346553,0.84925892,116430.0,116420.0,2.00566012]
[1758048346772,0.83323546,116430.0,116420.0,2.27614012]
[1758048347253,0.56275546,116430.0,116420.0,2.27614012]
[1758048347473,0.83323546,116430.0,116420.0,2.4479319]
[1758048347654,0.893928,116430.0,116420.0,2.4479319]
[1758048349852,0.0041,116430.0,116420.0,2.53443335]
[1758048350651,0.0041,116430.0,116420.0,2.93443335]
[1758048350875,0.00022656,116430.0,116420.0,3.63550287]
[1758048351082,0.0001,116450.0,116440.0,0.17176228]
[1758048351245,0.0001,116450.0,116440.0,0.98950947]
[1758048351449,0.0001,116460.0,116450.0,0.17174753]
[1758048351654,0.0001,116460.0,116450.0,1.2919185]
[1758048351878,0.0001,116460.0,116450.0,1.2939885]
[1758048352129,0.0001,116460.0,116450.0,1.08875163]
[1758048352753,0.0001,116460.0,116450.0,1.37026846]
[1758048353389,0.0001,116460.0,116450.0,1.37036846]
[1758048353604,0.0021,116460.0,116450.0,1.37632846]
[1758048353806,0.0021,116460.0,116450.0,1.10588846]
[1758048354011,0.0021,116460.0,116450.0,1.37632846]
[1758048354415,0.0021,116460.0,116450.0,1.10588846]
[1758048355075,0.0021,116460.0,116450.0,1.37632846]
[1758048355282,0.0021,116460.0,116450.0,1.10588846]
[1758048355481,0.0021,116460.0,116450.0,1.37632846]
[1758048356345,0.0021,116460.0,116450.0,1.10588846]
[1758048356546,0.0021,116460.0,116450.0,1.37628846]
[1758048357404,0.0021,116460.0,116450.0,1.10588846]
[1758048357556,0.0021,116460.0,116450.0,1.37628846]
[1758048358461,0.0021,116460.0,116450.0,1.71628846]
[1758048358665,0.002,116460.0,116450.0,1.71628846]
[1758048358866,0.002,116460.0,116450.0,1.74208192]
[1758048359222,0.002,116460.0,116450.0,1.47168192]
[1758048359609,0.002,116460.0,116450.0,1.74204192]
[1758048360474,0.002,116460.0,116450.0,1.50183382]
[1758048360713,0.0001,116480.0,116470.0,0.51171803]
[1758048360930,0.0001,116490.0,116480.0,0.17170329]
[1758048361140,0.0001,116490.0,116480.0,0.63840458]
[1758048361351,0.0001,116490.0,116480.0,1.29371426]
[1758048361562,0.0001,116490.0,116480.0,1.35660164]
[1758048361784,0.0001,116490.0,116480.0,1.42624164]
[1758048362020,0.00014716,116490.0,116480.0,1.69660164]
[1758048362244,4.716e-05,116490.0,116480.0,1.69660164]
[1758048362664,0.00104716,116490.0,116480.0,1.35860164]
[1758048362887,4.716e-05,116490.0,116480.0,1.35656164]
[1758048363063,4.716e-05,116490.0,116480.0,1.58624164]
[1758048363289,0.00104716,116490.0,116480.0,1.59224164]
[1758048363544,0.00204716,116490.0,116480.0,1.86556164]
[1758048363757,0.00204716,116490.0,116480.0,1.59524164]
[1758048363958,0.00204716,116490.0,116480.0,1.23417212]
[1758048364195,0.00204716,116490.0,116480.0,1.86556164]
[1758048364353,0.00204716,116490.0,116480.0,1.50449212]
[1758048364750,0.00204716,116490.0,116480.0,1.50459212]
[1758048365318,0.00204716,116490.0,116480.0,1.23427212]
[1758048365947,0.00204716,116490.0,116480.0,1.50455212]
[1758048366096,0.00204716,116490.0,116480.0,1.23427212]
[1758048366315,0.00204716,116490.0,116480.0,1.50455212]
[1758048368843,0.00204716,116490.0,116480.0,1.23427212]
[1758048369294,0.00204716,116490.0,116480.0,1.50455212]
[1758048370009,0.00204716,116490.0,116480.0,1.91006337]
[1758048370239,0.00204716,116490.0,116480.0,1.50455212]
[1758048370466,0.00204716,116490.0,116480.0,1.91006337]
[1758048371201,0.00204716,116490.0,116480.0,1.50455212]
[1758048371418,0.00204716,116490.0,116480.0,1.91006337]
[1758048371662,0.00204716,116490.0,116480.0,1.50455212]
[1758048371865,0.00204716,116490.0,116480.0,1.91006337]
[1758048374468,0.00204716,116490.0,116480.0,1.50455212]
[1758048374691,0.00204716,116490.0,116480.0,1.91062337]
[1758048375323,0.00204716,116490.0,116480.0,1.91070337]
[1758048375730,0.00204716,116490.0,116480.0,1.63978337]
[1758048375953,0.00204716,116490.0,116480.0,1.91070337]
[1758048376973,0.00204716,116490.0,116480.0,1.23427212]
[1758048377168,0.00204716,116490.0,116480.0,1.50519212]
[1758048377411,0.0179704,116490.0,116480.0,1.91070337]
[1758048378641,0.0179704,116490.0,116480.0,1.50519212]
[1758048378865,0.0179704,116490.0,116480.0,1.91070337]
[1758048380591,0.0179704,116490.0,116480.0,1.50519212]
[1758048380813,0.0179704,116490.0,116480.0,1.50499212]
[1758048381035,0.0179704,116490.0,116480.0,1.91050337]
[1758048382362,0.0179704,116490.0,116480.0,1.41050337]
[1758048384100,0.0179704,116490.0,116480.0,1.00499212]
[1758048384410,0.0179704,116490.0,116480.0,1.41050337]
[1758048385488,0.0179704,116490.0,116480.0,1.41046337]
[1758048386675,0.0179704,116490.0,116480.0,1.13978337]
[1758048386979,0.0179704,116490.0,116480.0,1.91050337]
[1758048387416,0.0179704,116490.0,116480.0,2.39660638]
[1758048387588,0.0179704,116490.0,116480.0,2.31601462]
[1758048388198,0.0179704,116490.0,116480.0,1.91050337]
[1758048389682,0.01807353,116490.0,116480.0,1.91050337]
[1758048391876,0.01807353,116490.0,116480.0,1.41050337]
[1758048392075,0.01807353,116490.0,116480.0,1.13978337]
[1758048392311,0.01807353,116490.0,116480.0,1.41042337]
[1758048393557,0.01808162,116490.0,116480.0,1.41042337]
[1758048395665,0.01808162,116490.0,116480.0,1.13978337]
[1758048395866,0.01808162,116490.0,116480.0,1.41026337]
[1758048396027,0.01808293,116490.0,116480.0,1.41026337]
[1758048396900,0.01808293,116490.0,116480.0,2.31577462]
[1758048397112,0.01808293,116490.0,116480.0,2.65577462]
[1758048397319,0.01808293,116490.0,116480.0,2.73592652]
[1758048397957,0.01808293,116490.0,116480.0,2.75400945]
[1758048398161,0.00204716,116490.0,116480.0,2.75400945]
[1758048398950,0.01807368,116490.0,116480.0,2.75400945]
[1758048401272,0.00204716,116490.0,116480.0,2.75400945]
[1758048402394,0.00204716,116490.0,116480.0,2.25400945]
[1758048407441,0.00204716,116490.0,116480.0,2.75400945]
[1758048408747,0.00204716,116490.0,116480.0,2.75408945]
[1758048409400,0.00204716,116490.0,116480.0,2.75404945]
[1758048412386,0.00204716,116490.0,116480.0,2.25404945]
[1758048414023,0.00204716,116490.0,116480.0,1.98352945]
[1758048414269,0.00204716,116490.0,116480.0,2.36174747]
[1758048414482,0.00204716,116490.0,116480.0,1.55072497]
[1758048414795,0.00204716,116490.0,116480.0,2.36174747]
[1758048416047,0.00204716,116490.0,116480.0,1.18213014]
[1758048416257,0.00204716,116490.0,116480.0,1.41010337]
[1758048416482,0.00204716,116490.0,116480.0,0.73427212]
[1758048416689,0.40755841,116490.0,116480.0,1.00471212]
[1758048417110,0.00204716,116490.0,116480.0,1.00471212]
[1758048417332,0.00204716,116490.0,116480.0,1.00259212]
[1758048418399,0.00204716,116490.0,116480.0,1.50259212]
[1758048418765,0.00214716,116490.0,116480.0,1.50259212]
[1758048420493,0.00214716,116490.0,116480.0,1.91022337]
[1758048420708,0.60563696,116490.0,116480.0,1.50047212]